[Event "Titled Tuesday Blitz October 18 Late 2022"]
[White "Kanter, Eduard"]
[Black "Efremov, Vladislav"]
[WhiteFideId "4103963"]
[BlackFideId "44159935"]
[WhiteElo "2267"]
[BlackElo "2118"]
[Result "1/2-1/2"]
[Round "02"]
[TimeControl "180+1"]
[Date "2022.10.19"]
[WhiteClock "0:00:06"]
[BlackClock "0:01:19"]

1. d4 {[%clk 0:03:00]}  Nf6 {[%clk 0:02:58]} 2. c4 {[%clk 0:03:00]}  e6 {[%clk 0:02:59]} 3. Nf3 {[%clk 0:03:00]}  d5 {[%clk 0:02:59]} 4. g3 {[%clk 0:02:59]}  dxc4 {[%clk 0:02:59]} 5. Bg2 {[%clk 0:02:59]}  Bb4+ {[%clk 0:03:00]} 6. Nc3 {[%clk 0:02:58]}  a5 {[%clk 0:03:00]} 7. O-O {[%clk 0:02:53]}  O-O {[%clk 0:02:59]} 8. Ne5 {[%clk 0:02:50]}  Nd5 {[%clk 0:02:53]} 9. Qc2 {[%clk 0:02:42]}  Bxc3 {[%clk 0:02:51]} 10. bxc3 {[%clk 0:02:43]}  b5 {[%clk 0:02:51]} 11. a4 {[%clk 0:02:26]}  c6 {[%clk 0:02:51]} 12. Rb1 {[%clk 0:02:10]}  Ba6 {[%clk 0:02:48]} 13. Nxc6 {[%clk 0:02:03]}  Nxc6 {[%clk 0:02:43]} 14. axb5 {[%clk 0:02:03]}  Ncb4 {[%clk 0:02:22]} 15. cxb4 {[%clk 0:01:55]}  Bxb5 {[%clk 0:02:23]} 16. bxa5 {[%clk 0:01:47]}  Qxa5 {[%clk 0:02:23]} 17. Bd2 {[%clk 0:01:13]}  Qa4 {[%clk 0:02:13]} 18. Qxa4 {[%clk 0:01:05]}  Bxa4 {[%clk 0:02:13]} 19. Rfc1 {[%clk 0:00:54]}  Rfc8 {[%clk 0:02:13]} 20. Be1 {[%clk 0:00:32]}  Bb3 {[%clk 0:02:01]} 21. e4 {[%clk 0:00:25]}  Nf6 {[%clk 0:02:00]} 22. Bc3 {[%clk 0:00:21]}  Ra2 {[%clk 0:01:55]} 23. Ra1 {[%clk 0:00:18]}  Rca8 {[%clk 0:01:55]} 24. Rxa2 {[%clk 0:00:18]}  Rxa2 {[%clk 0:01:55]} 25. f3 {[%clk 0:00:15]}  Nd7 {[%clk 0:01:48]} 26. Bf1 {[%clk 0:00:15]}  Nb6 {[%clk 0:01:47]} 27. Ra1 {[%clk 0:00:12]}  Rxa1 {[%clk 0:01:44]} 28. Bxa1 {[%clk 0:00:12]}  Na4 {[%clk 0:01:44]} 29. Kf2 {[%clk 0:00:08]}  Kf8 {[%clk 0:01:30]} 30. Ke3 {[%clk 0:00:08]}  Ke7 {[%clk 0:01:29]} 31. Kd2 {[%clk 0:00:09]}  Kd6 {[%clk 0:01:28]} 32. Bc3 {[%clk 0:00:09]}  Kc6 {[%clk 0:01:28]} 33. Bb4 {[%clk 0:00:09]}  Kb5 {[%clk 0:01:27]} 34. Ba3 {[%clk 0:00:09]}  Nb6 {[%clk 0:01:19]} 35. Bc5 {[%clk 0:00:07]}  Na4 {[%clk 0:01:18]} 36. Ba3 {[%clk 0:00:07]}  Nb6 {[%clk 0:01:18]} 37. Bc5 {[%clk 0:00:06]}  Na4 {[%clk 0:01:19]} 38. Ba3 {[%clk 0:00:06]} 1/2-1/2


[Site "https://www.chess.com"]

[Event "Titled Tuesday Blitz October 18 Late 2022"]
[White "Khumalo, Keith"]
[Black "Jobava, Baadur"]
[WhiteFideId "14319470"]
[BlackFideId "13601520"]
[WhiteElo "2056"]
[BlackElo "2582"]
[Result "0-1"]
[Round "02"]
[TimeControl "180+1"]
[Date "2022.10.18"]
[WhiteClock "0:00:30"]
[BlackClock "0:00:29"]

1. d4 {[%clk 0:03:00]}  Nf6 {[%clk 0:03:00]} 2. c4 {[%clk 0:02:50]}  c5 {[%clk 0:02:58]} 3. d5 {[%clk 0:02:50]}  d6 {[%clk 0:02:57]} 4. Nc3 {[%clk 0:02:50]}  g6 {[%clk 0:02:58]} 5. Nf3 {[%clk 0:02:50]}  Bg7 {[%clk 0:02:59]} 6. h3 {[%clk 0:02:50]}  O-O {[%clk 0:02:58]} 7. Bf4 {[%clk 0:02:51]}  Re8 {[%clk 0:02:57]} 8. e3 {[%clk 0:02:51]}  a6 {[%clk 0:02:57]} 9. a4 {[%clk 0:02:51]}  Nbd7 {[%clk 0:02:54]} 10. Be2 {[%clk 0:02:51]}  h6 {[%clk 0:02:49]} 11. Bh2 {[%clk 0:02:49]}  Nf8 {[%clk 0:02:49]} 12. O-O {[%clk 0:02:49]}  g5 {[%clk 0:02:49]} 13. Nd2 {[%clk 0:02:49]}  Ng6 {[%clk 0:02:50]} 14. e4 {[%clk 0:02:49]}  e5 {[%clk 0:02:43]} 15. dxe6 {[%clk 0:02:46]}  Bxe6 {[%clk 0:02:42]} 16. a5 {[%clk 0:02:43]}  Qe7 {[%clk 0:02:36]} 17. Re1 {[%clk 0:02:38]}  Rad8 {[%clk 0:02:36]} 18. Nf1 {[%clk 0:02:36]}  Nf4 {[%clk 0:02:31]} 19. Ne3 {[%clk 0:02:36]}  Qf8 {[%clk 0:02:26]} 20. Bf1 {[%clk 0:02:34]}  Nd7 {[%clk 0:02:24]} 21. Qb3 {[%clk 0:02:30]}  Ne5 {[%clk 0:02:19]} 22. Ncd5 {[%clk 0:02:22]}  Bxd5 {[%clk 0:02:15]} 23. cxd5 {[%clk 0:02:22]}  Nxh3+ {[%clk 0:02:00]} 24. gxh3 {[%clk 0:02:20]}  Nf3+ {[%clk 0:02:01]} 25. Kh1 {[%clk 0:02:21]}  Nxe1 {[%clk 0:02:01]} 26. Rxe1 {[%clk 0:02:21]}  Rxe4 {[%clk 0:02:02]} 27. Bd3 {[%clk 0:02:15]}  Rb4 {[%clk 0:02:02]} 28. Qc2 {[%clk 0:02:09]}  Rxb2 {[%clk 0:02:00]} 29. Qc4 {[%clk 0:02:10]}  Rxf2 {[%clk 0:01:59]} 30. Qe4 {[%clk 0:02:08]}  Qe8 {[%clk 0:01:51]} 31. Qh7+ {[%clk 0:02:08]}  Kf8 {[%clk 0:01:52]} 32. Bg3 {[%clk 0:02:00]}  Rf3 {[%clk 0:01:49]} 33. Nf5 {[%clk 0:01:59]}  Qxe1+ {[%clk 0:01:27]} 34. Bxe1 {[%clk 0:02:00]}  Be5 {[%clk 0:01:27]} 35. Qxh6+ {[%clk 0:01:49]}  Ke8 {[%clk 0:01:26]} 36. Be2 {[%clk 0:01:47]}  Rxf5 {[%clk 0:01:26]} 37. Kg2 {[%clk 0:01:37]}  Bf4 {[%clk 0:01:17]} 38. Bd1 {[%clk 0:01:33]}  Ke7 {[%clk 0:01:10]} 39. Bc3 {[%clk 0:01:29]}  Be5 {[%clk 0:01:06]} 40. Bc2 {[%clk 0:01:24]}  Rf6 {[%clk 0:01:06]} 41. Qh7 {[%clk 0:01:11]}  Bxc3 {[%clk 0:01:06]} 42. Qe4+ {[%clk 0:01:12]}  Be5 {[%clk 0:01:06]} 43. Bd1 {[%clk 0:01:10]}  Rf4 {[%clk 0:01:05]} 44. Qb1 {[%clk 0:01:11]}  Rb4 {[%clk 0:01:04]} 45. Qf5 {[%clk 0:01:11]}  Bf6 {[%clk 0:00:59]} 46. Bg4 {[%clk 0:01:11]}  Rb2+ {[%clk 0:00:52]} 47. Kf1 {[%clk 0:01:10]}  Rb4 {[%clk 0:00:48]} 48. Ke2 {[%clk 0:01:08]}  Rf4 {[%clk 0:00:46]} 49. Qb1 {[%clk 0:01:06]}  Kf8 {[%clk 0:00:46]} 50. Qxb7 {[%clk 0:00:59]}  Re8+ {[%clk 0:00:46]} 51. Kd2 {[%clk 0:00:59]}  c4 {[%clk 0:00:44]} 52. Qb6 {[%clk 0:00:36]}  Kg7 {[%clk 0:00:42]} 53. Kc2 {[%clk 0:00:33]}  Bd4 {[%clk 0:00:39]} 54. Qxd6 {[%clk 0:00:33]}  Rf2+ {[%clk 0:00:39]} 55. Kd1 {[%clk 0:00:33]}  c3 {[%clk 0:00:35]} 56. Be6 {[%clk 0:00:30]}  c2+ {[%clk 0:00:29]} 0-1


[Site "https://www.chess.com"]

[Event "Titled Tuesday Blitz October 18 Late 2022"]
[White "Kouskoutis, Georgios-Alexandros"]
[Black "Rosenberg, Evan S"]
[WhiteFideId "4234049"]
[BlackFideId "2019299"]
[WhiteElo "2187"]
[BlackElo "2366"]
[Result "1-0"]
[Round "02"]
[TimeControl "180+1"]
[Date "2022.10.19"]
[WhiteClock "0:00:07"]
[BlackClock "0:00:10"]

1. Nf3 {[%clk 0:03:00]}  d5 {[%clk 0:02:59]} 2. g3 {[%clk 0:03:00]}  Nd7 {[%clk 0:02:59]} 3. d4 {[%clk 0:02:59]}  Nb6 {[%clk 0:02:58]} 4. Bg2 {[%clk 0:02:57]}  Nf6 {[%clk 0:02:58]} 5. O-O {[%clk 0:02:55]}  Bf5 {[%clk 0:02:59]} 6. c3 {[%clk 0:02:53]}  h6 {[%clk 0:02:58]} 7. a4 {[%clk 0:02:45]}  a5 {[%clk 0:02:57]} 8. b3 {[%clk 0:02:27]}  e6 {[%clk 0:02:56]} 9. Ba3 {[%clk 0:02:27]}  Bxa3 {[%clk 0:02:55]} 10. Nxa3 {[%clk 0:02:27]}  O-O {[%clk 0:02:56]} 11. Nd2 {[%clk 0:02:21]}  c6 {[%clk 0:02:50]} 12. Re1 {[%clk 0:02:16]}  Re8 {[%clk 0:02:41]} 13. e4 {[%clk 0:02:12]}  dxe4 {[%clk 0:02:42]} 14. Nxe4 {[%clk 0:02:13]}  Nxe4 {[%clk 0:02:42]} 15. Bxe4 {[%clk 0:02:14]}  Bxe4 {[%clk 0:02:43]} 16. Rxe4 {[%clk 0:02:15]}  Nd5 {[%clk 0:02:41]} 17. Qc2 {[%clk 0:02:11]}  Qf6 {[%clk 0:02:33]} 18. Nc4 {[%clk 0:01:58]}  b5 {[%clk 0:02:18]} 19. Ne5 {[%clk 0:01:31]}  b4 {[%clk 0:02:06]} 20. cxb4 {[%clk 0:01:26]}  Nxb4 {[%clk 0:02:04]} 21. Qc4 {[%clk 0:01:26]}  Nd5 {[%clk 0:01:53]} 22. Kg2 {[%clk 0:01:05]}  c5 {[%clk 0:01:46]} 23. dxc5 {[%clk 0:01:01]}  Red8 {[%clk 0:01:35]} 24. Rae1 {[%clk 0:00:59]}  Rac8 {[%clk 0:01:30]} 25. c6 {[%clk 0:00:56]}  Nb4 {[%clk 0:01:24]} 26. Rf4 {[%clk 0:00:48]}  Qg5 {[%clk 0:01:03]} 27. Nxf7 {[%clk 0:00:33]}  Qd5+ {[%clk 0:01:01]} 28. Ree4 {[%clk 0:00:22]}  Rf8 {[%clk 0:00:52]} 29. Ne5 {[%clk 0:00:17]}  Rxf4 {[%clk 0:00:49]} 30. Qxd5 {[%clk 0:00:16]}  Nxd5 {[%clk 0:00:43]} 31. gxf4 {[%clk 0:00:15]}  Ne7 {[%clk 0:00:43]} 32. Rc4 {[%clk 0:00:15]}  Rc7 {[%clk 0:00:41]} 33. Rc5 {[%clk 0:00:15]}  Nd5 {[%clk 0:00:40]} 34. f5 {[%clk 0:00:10]}  Nf4+ {[%clk 0:00:39]} 35. Kf3 {[%clk 0:00:09]}  Nh3 {[%clk 0:00:35]} 36. Kg4 {[%clk 0:00:07]}  Nxf2+ {[%clk 0:00:33]} 37. Kf3 {[%clk 0:00:06]}  Nh3 {[%clk 0:00:31]} 38. fxe6 {[%clk 0:00:05]}  Ng5+ {[%clk 0:00:31]} 39. Kg4 {[%clk 0:00:04]}  Nxe6 {[%clk 0:00:32]} 40. Rxa5 {[%clk 0:00:04]}  Kh7 {[%clk 0:00:23]} 41. b4 {[%clk 0:00:04]}  Nd4 {[%clk 0:00:19]} 42. b5 {[%clk 0:00:04]}  Nb3 {[%clk 0:00:20]} 43. Ra8 {[%clk 0:00:03]}  Re7 {[%clk 0:00:18]} 44. Kf5 {[%clk 0:00:03]}  Nd4+ {[%clk 0:00:17]} 45. Kf4 {[%clk 0:00:03]}  Ne6+ {[%clk 0:00:17]} 46. Ke4 {[%clk 0:00:03]}  Nc5+ {[%clk 0:00:15]} 47. Kd5 {[%clk 0:00:03]}  Ne6 {[%clk 0:00:12]} 48. b6 {[%clk 0:00:03]}  Nf4+ {[%clk 0:00:10]} 49. Ke4 {[%clk 0:00:03]}  Ng6 {[%clk 0:00:09]} 50. c7 {[%clk 0:00:04]}  Rxe5+ {[%clk 0:00:10]} 51. Kd4 {[%clk 0:00:04]}  Re1 {[%clk 0:00:08]} 52. c8=Q {[%clk 0:00:04]}  Rd1+ {[%clk 0:00:09]} 53. Kc3 {[%clk 0:00:04]}  Rc1+ {[%clk 0:00:08]} 54. Kb2 {[%clk 0:00:05]}  Rxc8 {[%clk 0:00:08]} 55. Rxc8 {[%clk 0:00:06]}  Ne7 {[%clk 0:00:08]} 56. b7 {[%clk 0:00:06]}  Nxc8 {[%clk 0:00:07]} 57. bxc8=Q {[%clk 0:00:07]}  Kg6 {[%clk 0:00:08]} 58. Qe6+ {[%clk 0:00:07]}  Kh5 {[%clk 0:00:07]} 59. a5 {[%clk 0:00:06]}  g5 {[%clk 0:00:08]} 60. a6 {[%clk 0:00:06]}  g4 {[%clk 0:00:09]} 61. a7 {[%clk 0:00:06]}  g3 {[%clk 0:00:10]} 62. Qf5+ {[%clk 0:00:06]}  Kh4 {[%clk 0:00:10]} 63. hxg3+ {[%clk 0:00:06]}  Kxg3 {[%clk 0:00:09]} 64. a8=Q {[%clk 0:00:07]}  h5 {[%clk 0:00:10]} 65. Qaf3+ {[%clk 0:00:07]}  Kh4 {[%clk 0:00:10]} 66. Q5xh5# {[%clk 0:00:07]} 1-0


[Site "https://www.chess.com"]

[Event "Titled Tuesday Blitz October 18 Late 2022"]
[White "Li, Hui"]
[Black "Osmak, Yuliia"]
[WhiteFideId "15400310"]
[BlackFideId "14101602"]
[WhiteElo "1954"]
[BlackElo "2328"]
[Result "0-1"]
[Round "02"]
[TimeControl "180+1"]
[Date "2022.10.19"]
[WhiteClock "0:00:09"]
[BlackClock "0:01:08"]

1. e4 {[%clk 0:03:00]}  c5 {[%clk 0:02:59]} 2. Nf3 {[%clk 0:03:00]}  d6 {[%clk 0:02:59]} 3. d4 {[%clk 0:03:00]}  cxd4 {[%clk 0:03:00]} 4. Nxd4 {[%clk 0:03:00]}  Nf6 {[%clk 0:03:00]} 5. Nc3 {[%clk 0:02:59]}  a6 {[%clk 0:02:59]} 6. Be2 {[%clk 0:02:59]}  e6 {[%clk 0:02:59]} 7. O-O {[%clk 0:02:58]}  Nbd7 {[%clk 0:02:58]} 8. f4 {[%clk 0:02:56]}  b5 {[%clk 0:02:44]} 9. Bf3 {[%clk 0:02:52]}  Bb7 {[%clk 0:02:42]} 10. e5 {[%clk 0:02:38]}  Bxf3 {[%clk 0:02:41]} 11. Nxf3 {[%clk 0:02:38]}  dxe5 {[%clk 0:02:38]} 12. fxe5 {[%clk 0:02:38]}  Qb6+ {[%clk 0:02:26]} 13. Kh1 {[%clk 0:02:36]}  Ng4 {[%clk 0:02:26]} 14. Qe2 {[%clk 0:02:36]}  Rc8 {[%clk 0:02:03]} 15. h3 {[%clk 0:02:33]}  h5 {[%clk 0:02:03]} 16. Bf4 {[%clk 0:02:22]}  Be7 {[%clk 0:01:51]} 17. hxg4 {[%clk 0:02:07]}  hxg4+ {[%clk 0:01:52]} 18. Nh2 {[%clk 0:02:07]}  Rc4 {[%clk 0:01:41]} 19. Bg3 {[%clk 0:01:56]}  Bh4 {[%clk 0:01:40]} 20. Bxh4 {[%clk 0:01:51]}  Rxh4 {[%clk 0:01:41]} 21. g3 {[%clk 0:01:50]}  Rh3 {[%clk 0:01:39]} 22. Ne4 {[%clk 0:00:53]}  Qc6 {[%clk 0:01:37]} 23. Rae1 {[%clk 0:00:45]}  Nc5 {[%clk 0:01:30]} 24. Qxg4 {[%clk 0:00:33]}  Rxe4 {[%clk 0:01:25]} 25. Rxe4 {[%clk 0:00:31]}  Nxe4 {[%clk 0:01:20]} 26. Qxg7 {[%clk 0:00:11]}  Nxg3+ {[%clk 0:01:10]} 27. Kg1 {[%clk 0:00:11]}  Qh1+ {[%clk 0:01:11]} 28. Kf2 {[%clk 0:00:11]}  Rxh2+ {[%clk 0:01:09]} 29. Kxg3 {[%clk 0:00:09]}  Qg2+ {[%clk 0:01:08]} 0-1


[Site "https://www.chess.com"]

[Event "Titled Tuesday Blitz October 18 Late 2022"]
[White "Li, Ruifeng"]
[Black "Ozdemir, Serhan Berat"]
[WhiteFideId "2061074"]
[BlackFideId "6374611"]
[WhiteElo "2441"]
[BlackElo "2016"]
[Result "1-0"]
[Round "02"]
[TimeControl "180+1"]
[Date "2022.10.18"]
[WhiteClock "0:01:48"]
[BlackClock "0:00:01"]

1. b3 {[%clk 0:03:00]}  e5 {[%clk 0:02:56]} 2. Bb2 {[%clk 0:03:00]}  Nc6 {[%clk 0:02:50]} 3. Nf3 {[%clk 0:03:00]}  e4 {[%clk 0:02:47]} 4. Nd4 {[%clk 0:03:01]}  Nxd4 {[%clk 0:02:47]} 5. Bxd4 {[%clk 0:03:01]}  Ne7 {[%clk 0:02:47]} 6. e3 {[%clk 0:03:01]}  Nf5 {[%clk 0:02:39]} 7. Bb2 {[%clk 0:03:01]}  Nh4 {[%clk 0:02:38]} 8. Qh5 {[%clk 0:02:36]}  d5 {[%clk 0:02:23]} 9. c4 {[%clk 0:02:35]}  Bf5 {[%clk 0:01:08]} 10. cxd5 {[%clk 0:02:19]}  g6 {[%clk 0:00:59]} 11. Bb5+ {[%clk 0:02:18]}  c6 {[%clk 0:00:54]} 12. dxc6 {[%clk 0:02:18]}  Nxg2+ {[%clk 0:00:05]} 13. Kf1 {[%clk 0:02:17]}  Qb6 {[%clk 0:00:05]} 14. Qe2 {[%clk 0:02:05]}  Bh3 {[%clk 0:00:04]} 15. cxb7+ {[%clk 0:01:59]}  Ke7 {[%clk 0:00:02]} 16. bxa8=Q {[%clk 0:01:54]}  Nf4+ {[%clk 0:00:01]} 17. Ke1 {[%clk 0:01:52]}  Nxe2 {[%clk 0:00:02]} 18. Qe8+ {[%clk 0:01:50]}  Kd6 {[%clk 0:00:01]} 19. Qe5# {[%clk 0:01:48]} 1-0


[Site "https://www.chess.com"]

[Event "Titled Tuesday Blitz October 18 Late 2022"]
[White "Lizak, Peter"]
[Black "Kaganskiy, Gleb"]
[WhiteFideId "731595"]
[BlackFideId "4132025"]
[WhiteElo "2420"]
[BlackElo "2165"]
[Result "1-0"]
[Round "02"]
[TimeControl "180+1"]
[Date "2022.10.19"]
[WhiteClock "0:02:05"]
[BlackClock "0:02:00"]

1. d4 {[%clk 0:03:00]}  d5 {[%clk 0:02:56]} 2. Nc3 {[%clk 0:02:52]}  c6 {[%clk 0:02:54]} 3. Bf4 {[%clk 0:02:52]}  Nf6 {[%clk 0:02:52]} 4. e3 {[%clk 0:02:52]}  g6 {[%clk 0:02:40]} 5. h4 {[%clk 0:02:52]}  h6 {[%clk 0:02:39]} 6. Nf3 {[%clk 0:02:52]}  Bg7 {[%clk 0:02:39]} 7. Ne5 {[%clk 0:02:52]}  Nbd7 {[%clk 0:02:38]} 8. Be2 {[%clk 0:02:48]}  Qb6 {[%clk 0:02:33]} 9. a3 {[%clk 0:02:43]}  Nxe5 {[%clk 0:02:30]} 10. Bxe5 {[%clk 0:02:43]}  O-O {[%clk 0:02:29]} 11. g4 {[%clk 0:02:39]}  Ne4 {[%clk 0:02:25]} 12. Nxe4 {[%clk 0:02:29]}  dxe4 {[%clk 0:02:21]} 13. Bxg7 {[%clk 0:02:29]}  Kxg7 {[%clk 0:02:22]} 14. b3 {[%clk 0:02:10]}  Be6 {[%clk 0:02:17]} 15. Qd2 {[%clk 0:02:08]}  c5 {[%clk 0:02:13]} 16. d5 {[%clk 0:02:06]}  Rad8 {[%clk 0:02:04]} 17. Qc3+ {[%clk 0:02:05]}  f6 {[%clk 0:02:00]} 18. dxe6 {[%clk 0:02:05]} 1-0


[Site "https://www.chess.com"]

[Event "Titled Tuesday Blitz October 18 Late 2022"]
[White "Lorenzo De La Riva, Lazaro"]
[Black "Goryachkina, Aleksandra"]
[WhiteFideId "2268809"]
[BlackFideId "4147103"]
[WhiteElo "2325"]
[BlackElo "2484"]
[Result "1/2-1/2"]
[Round "02"]
[TimeControl "180+1"]
[Date "2022.10.19"]
[WhiteClock "0:00:17"]
[BlackClock "0:00:09"]

1. e4 {[%clk 0:02:56]}  c5 {[%clk 0:02:59]} 2. Nf3 {[%clk 0:02:56]}  e6 {[%clk 0:03:00]} 3. d4 {[%clk 0:02:57]}  cxd4 {[%clk 0:03:00]} 4. Nxd4 {[%clk 0:02:57]}  Nf6 {[%clk 0:03:01]} 5. Nc3 {[%clk 0:02:57]}  Nc6 {[%clk 0:03:01]} 6. Nxc6 {[%clk 0:02:57]}  bxc6 {[%clk 0:03:01]} 7. e5 {[%clk 0:02:58]}  Nd5 {[%clk 0:03:00]} 8. Ne4 {[%clk 0:02:58]}  Qc7 {[%clk 0:02:59]} 9. f4 {[%clk 0:02:59]}  Qb6 {[%clk 0:02:59]} 10. c4 {[%clk 0:02:59]}  Bb4+ {[%clk 0:02:59]} 11. Ke2 {[%clk 0:02:57]}  O-O {[%clk 0:02:58]} 12. Kf3 {[%clk 0:02:53]}  f6 {[%clk 0:02:38]} 13. exf6 {[%clk 0:02:30]}  Nxf6 {[%clk 0:02:38]} 14. Be3 {[%clk 0:02:27]}  Qc7 {[%clk 0:02:36]} 15. Nxf6+ {[%clk 0:02:18]}  Rxf6 {[%clk 0:02:36]} 16. Bd3 {[%clk 0:02:04]}  d5 {[%clk 0:02:33]} 17. cxd5 {[%clk 0:02:01]}  exd5 {[%clk 0:02:28]} 18. Qc2 {[%clk 0:02:00]}  g6 {[%clk 0:02:01]} 19. g3 {[%clk 0:01:59]}  Bb7 {[%clk 0:01:47]} 20. Rhf1 {[%clk 0:01:29]}  c5 {[%clk 0:01:41]} 21. Kf2 {[%clk 0:01:20]}  Raf8 {[%clk 0:01:27]} 22. a3 {[%clk 0:01:13]}  d4 {[%clk 0:01:23]} 23. axb4 {[%clk 0:01:11]}  dxe3+ {[%clk 0:01:21]} 24. Kxe3 {[%clk 0:01:08]}  Qe7+ {[%clk 0:01:20]} 25. Kd2 {[%clk 0:01:04]}  cxb4 {[%clk 0:01:08]} 26. Qc4+ {[%clk 0:01:00]}  Kh8 {[%clk 0:01:06]} 27. Rfe1 {[%clk 0:01:00]}  Qd7 {[%clk 0:01:00]} 28. Rxa7 {[%clk 0:01:00]}  Rd8 {[%clk 0:00:52]} 29. Re3 {[%clk 0:00:54]}  Rd6 {[%clk 0:00:44]} 30. Ke1 {[%clk 0:00:48]}  Rxd3 {[%clk 0:00:34]} 31. Rxd3 {[%clk 0:00:45]}  Qxd3 {[%clk 0:00:34]} 32. Qxd3 {[%clk 0:00:45]}  Rxd3 {[%clk 0:00:34]} 33. Rxb7 {[%clk 0:00:45]}  Rb3 {[%clk 0:00:34]} 34. Kf1 {[%clk 0:00:42]}  Rxb2 {[%clk 0:00:34]} 35. Kg1 {[%clk 0:00:42]}  b3 {[%clk 0:00:31]} 36. Kh1 {[%clk 0:00:41]}  Kg8 {[%clk 0:00:30]} 37. Kg1 {[%clk 0:00:41]}  h5 {[%clk 0:00:28]} 38. h3 {[%clk 0:00:41]}  Kf8 {[%clk 0:00:22]} 39. g4 {[%clk 0:00:40]}  hxg4 {[%clk 0:00:22]} 40. hxg4 {[%clk 0:00:41]}  Ke8 {[%clk 0:00:22]} 41. Kf1 {[%clk 0:00:24]}  Kd8 {[%clk 0:00:15]} 42. Kg1 {[%clk 0:00:21]}  Kc8 {[%clk 0:00:15]} 43. Rb4 {[%clk 0:00:20]}  Kd7 {[%clk 0:00:15]} 44. f5 {[%clk 0:00:18]}  gxf5 {[%clk 0:00:15]} 45. gxf5 {[%clk 0:00:19]}  Kd6 {[%clk 0:00:14]} 46. Rb5 {[%clk 0:00:19]}  Ke7 {[%clk 0:00:11]} 47. Kf1 {[%clk 0:00:18]}  Kf7 {[%clk 0:00:10]} 48. Ke1 {[%clk 0:00:18]}  Rb1+ {[%clk 0:00:10]} 49. Kd2 {[%clk 0:00:18]}  Rf1 {[%clk 0:00:08]} 50. Kc3 {[%clk 0:00:17]}  Kf6 {[%clk 0:00:08]} 51. Kxb3 {[%clk 0:00:15]}  Rb1+ {[%clk 0:00:07]} 52. Ka4 {[%clk 0:00:16]}  Rxb5 {[%clk 0:00:08]} 53. Kxb5 {[%clk 0:00:17]}  Kxf5 {[%clk 0:00:09]} 1/2-1/2


[Site "https://www.chess.com"]

[Event "Titled Tuesday Blitz October 18 Late 2022"]
[White "Marcolino, Daniel Mattos"]
[Black "Huber, Benedikt"]
[WhiteFideId "2106841"]
[BlackFideId "12923583"]
[WhiteElo "2052"]
[BlackElo "2199"]
[Result "0-1"]
[Round "02"]
[TimeControl "180+1"]
[Date "2022.10.19"]
[WhiteClock "0:00:30"]
[BlackClock "0:01:30"]

1. d4 {[%clk 0:03:00]}  e6 {[%clk 0:02:57]} 2. Nf3 {[%clk 0:03:01]}  f5 {[%clk 0:02:57]} 3. g3 {[%clk 0:03:01]}  Nf6 {[%clk 0:02:58]} 4. Bg2 {[%clk 0:03:01]}  Be7 {[%clk 0:02:59]} 5. O-O {[%clk 0:03:02]}  O-O {[%clk 0:02:59]} 6. b3 {[%clk 0:03:02]}  d6 {[%clk 0:02:54]} 7. Bb2 {[%clk 0:03:03]}  a5 {[%clk 0:02:54]} 8. c4 {[%clk 0:03:01]}  Qe8 {[%clk 0:02:54]} 9. Nc3 {[%clk 0:03:01]}  Nbd7 {[%clk 0:02:42]} 10. Qc2 {[%clk 0:03:00]}  e5 {[%clk 0:02:42]} 11. dxe5 {[%clk 0:02:58]}  dxe5 {[%clk 0:02:43]} 12. e4 {[%clk 0:02:58]}  f4 {[%clk 0:02:43]} 13. Nd5 {[%clk 0:02:49]}  Bd8 {[%clk 0:02:40]} 14. Rfe1 {[%clk 0:02:18]}  fxg3 {[%clk 0:02:35]} 15. hxg3 {[%clk 0:02:18]}  c6 {[%clk 0:02:36]} 16. Ne3 {[%clk 0:02:13]}  Bc7 {[%clk 0:02:33]} 17. Rad1 {[%clk 0:02:08]}  Nc5 {[%clk 0:02:32]} 18. Ba3 {[%clk 0:01:51]}  Nfxe4 {[%clk 0:02:18]} 19. Nh4 {[%clk 0:01:37]}  Rxf2 {[%clk 0:02:18]} 20. Qxf2 {[%clk 0:01:19]}  Nxf2 {[%clk 0:02:17]} 21. Kxf2 {[%clk 0:01:20]}  g5 {[%clk 0:02:04]} 22. Nhf5 {[%clk 0:00:58]}  Qf7 {[%clk 0:01:48]} 23. g4 {[%clk 0:00:50]}  Bxf5 {[%clk 0:01:48]} 24. Nxf5 {[%clk 0:00:50]}  Ne6 {[%clk 0:01:48]} 25. Kg3 {[%clk 0:00:38]}  Kh8 {[%clk 0:01:42]} 26. Bd6 {[%clk 0:00:31]}  Bxd6 {[%clk 0:01:40]} 27. Rxd6 {[%clk 0:00:32]}  Rd8 {[%clk 0:01:35]} 28. Rxe5 {[%clk 0:00:29]}  Rxd6 {[%clk 0:01:31]} 29. Nxd6 {[%clk 0:00:30]}  Qf4+ {[%clk 0:01:30]} 0-1


[Site "https://www.chess.com"]

[Event "Titled Tuesday Blitz October 18 Late 2022"]
[White "Mazurkiewicz, Michal"]
[Black "Martinez Reyes, Pedro Ramon"]
[WhiteFideId "1124943"]
[BlackFideId "3901807"]
[WhiteElo "2063"]
[BlackElo "2354"]
[Result "0-1"]
[Round "02"]
[TimeControl "180+1"]
[Date "2022.10.19"]
[WhiteClock "0:00:04"]
[BlackClock "0:01:18"]

1. e4 {[%clk 0:02:57]}  c6 {[%clk 0:02:57]} 2. d3 {[%clk 0:02:58]}  d5 {[%clk 0:02:50]} 3. Nd2 {[%clk 0:02:58]}  e5 {[%clk 0:02:49]} 4. Ngf3 {[%clk 0:02:59]}  Bd6 {[%clk 0:02:48]} 5. d4 {[%clk 0:02:59]}  exd4 {[%clk 0:02:48]} 6. exd5 {[%clk 0:02:59]}  Nf6 {[%clk 0:02:49]} 7. dxc6 {[%clk 0:02:59]}  Nxc6 {[%clk 0:02:50]} 8. Be2 {[%clk 0:02:58]}  O-O {[%clk 0:02:50]} 9. Nb3 {[%clk 0:02:57]}  Re8 {[%clk 0:01:48]} 10. O-O {[%clk 0:02:57]}  Bg4 {[%clk 0:01:38]} 11. h3 {[%clk 0:02:56]}  Bxf3 {[%clk 0:01:38]} 12. Bxf3 {[%clk 0:02:56]}  Be5 {[%clk 0:01:37]} 13. Nc5 {[%clk 0:02:41]}  Qc7 {[%clk 0:01:34]} 14. Nd3 {[%clk 0:02:24]}  Bh2+ {[%clk 0:01:32]} 15. Kh1 {[%clk 0:02:24]}  Bd6 {[%clk 0:01:33]} 16. Bd2 {[%clk 0:01:23]}  Rad8 {[%clk 0:01:33]} 17. Re1 {[%clk 0:01:19]}  Ne5 {[%clk 0:01:33]} 18. Nxe5 {[%clk 0:01:09]}  Bxe5 {[%clk 0:01:34]} 19. Bb4 {[%clk 0:00:44]}  a5 {[%clk 0:01:32]} 20. Bd2 {[%clk 0:00:18]}  b6 {[%clk 0:01:32]} 21. Qe2 {[%clk 0:00:14]}  Qxc2 {[%clk 0:01:25]} 22. Rec1 {[%clk 0:00:09]}  d3 {[%clk 0:01:19]} 23. Qf1 {[%clk 0:00:04]}  Qxd2 {[%clk 0:01:18]} 0-1


[Site "https://www.chess.com"]